bitfinex/quotes_BTCUSD_20250709
["timestamp","ask_amount","ask_price","bid_price","bid_amount"]
[1752091049760,0.49040867,111850.0,111840.0,0.10010307]
[1752091049965,0.48740867,111850.0,111840.0,0.10010307]
[1752091050374,0.50728855,111850.0,111840.0,0.10010307]
[1752091050599,0.48940867,111850.0,111840.0,0.10010307]
[1752091051463,0.09843693,111850.0,111840.0,0.65774158]
[1752091051681,0.29135693,111850.0,111840.0,0.76302215]
[1752091051924,0.29135693,111850.0,111840.0,0.66075158]
[1752091052125,0.29135693,111850.0,111840.0,0.16290307]
[1752091052364,0.29135693,111850.0,111840.0,0.26517364]
[1752091052948,0.29135693,111850.0,111840.0,0.16290307]
[1752091053709,0.49698865,111850.0,111840.0,0.20253425]
[1752091053916,0.48804859,111850.0,111840.0,0.10010307]
[1752091054318,0.30029675,111850.0,111840.0,0.20253425]
[1752091054548,0.29135693,111850.0,111840.0,0.20253425]
[1752091054757,0.29135693,111850.0,111840.0,0.23333425]
[1752091054976,0.09843693,111850.0,111840.0,0.23333425]
[1752091055184,0.29387085,111850.0,111840.0,0.23333425]
[1752091055389,0.29075693,111850.0,111840.0,0.66165158]
[1752091055590,0.007,111850.0,111840.0,1.00165158]
[1752091055763,0.1992,111850.0,111840.0,1.1384635]
[1752091055974,0.1992,111850.0,111840.0,1.12952216]
[1752091056145,0.29063693,111850.0,111840.0,0.56797365]
[1752091056327,0.31591873,111850.0,111840.0,0.22797365]
[1752091056528,0.47684983,111850.0,111840.0,0.2025612]
[1752091056728,0.49139068,111850.0,111840.0,0.2025612]
[1752091056957,1.15801991,111850.0,111840.0,0.08773554]
[1752091057164,0.25230891,111840.0,111830.0,0.10245813]
[1752091057368,0.29374585,111840.0,111830.0,0.10259792]
[1752091057567,0.34374584,111840.0,111830.0,0.10259792]
[1752091057769,0.39374584,111840.0,111830.0,0.10259792]
[1752091058390,0.34374585,111840.0,111830.0,0.10859792]
[1752091058611,0.39374584,111840.0,111830.0,0.10259792]
[1752091059243,0.39374584,111840.0,111830.0,0.09876799]
[1752091059443,0.39374584,111840.0,111830.0,0.10076799]
[1752091059611,0.39374584,111840.0,111830.0,0.00213979]
[1752091059833,0.39374584,111840.0,111830.0,0.00313979]
[1752091060405,0.026857,111850.0,111840.0,0.61451698]
[1752091060671,0.00893902,111860.0,111850.0,0.0306]
[1752091060865,0.0089383,111870.0,111850.0,0.0306]
[1752091061083,0.00279367,111860.0,111840.0,0.07551698]
[1752091061285,0.3814,111850.0,111840.0,0.061]
[1752091061511,0.47283693,111850.0,111840.0,0.061]
[1752091061713,0.47283693,111850.0,111840.0,0.07551698]
[1752091061943,0.47283693,111850.0,111840.0,0.23982689]
[1752091062126,0.47283693,111850.0,111840.0,0.25434387]
[1752091062483,0.47283693,111850.0,111840.0,0.26034387]
[1752091062813,0.47283693,111850.0,111840.0,0.08151698]
[1752091063413,0.47283693,111850.0,111840.0,0.07]
[1752091063619,0.47283693,111850.0,111840.0,0.08451698]
[1752091063820,0.47283693,111850.0,111840.0,0.07]
[1752091064254,0.47283693,111850.0,111840.0,0.009]
[1752091064688,0.49071689,111850.0,111840.0,0.009]
[1752091064896,0.48177691,111850.0,111840.0,0.009]
[1752091065214,0.48177683,111850.0,111840.0,0.009]
[1752091065353,0.49071689,111850.0,111840.0,0.009]
[1752091065556,0.48177675,111850.0,111840.0,0.009]
[1752091065757,0.48177683,111850.0,111840.0,0.009]
[1752091066018,0.47283693,111850.0,111840.0,0.009]
[1752091066425,0.49071673,111850.0,111840.0,0.009]
[1752091066655,0.48177675,111850.0,111840.0,0.009]
[1752091066860,0.49071673,111850.0,111840.0,0.009]
[1752091067066,0.48177675,111850.0,111840.0,0.009]
[1752091067202,0.47283693,111850.0,111840.0,0.009]
[1752091068835,0.48177683,111850.0,111840.0,0.009]
[1752091069037,0.49071689,111850.0,111840.0,0.009]
[1752091069410,0.48177683,111850.0,111840.0,0.009]
[1752091069880,0.50859749,111850.0,111840.0,0.009]
[1752091070305,0.50859749,111850.0,111830.0,0.00013979]
[1752091070306,0.01454085,111840.0,111830.0,0.00013979]
[1752091070423,0.33202304,111840.0,111830.0,0.00013979]
[1752091070629,0.29374585,111840.0,111830.0,0.00013979]
[1752091071068,0.30268695,111840.0,111830.0,0.00013979]
[1752091072149,0.30268695,111840.0,111830.0,0.00213979]
[1752091072327,0.83300848,111840.0,111830.0,0.00213979]
[1752091072535,0.27010873,111830.0,111820.0,8e-05]
[1752091072757,0.2023593,111810.0,111800.0,4e-05]
[1752091072964,0.67687623,111810.0,111800.0,0.0001798]
[1752091073186,1.20719776,111810.0,111800.0,0.0001798]
[1752091073380,1.22186683,111810.0,111800.0,0.0001798]
[1752091073617,0.23785912,111800.0,111790.0,4e-05]
[1752091073819,0.20240971,111780.0,111770.0,0.09355638]
[1752091074019,0.67620664,111780.0,111770.0,0.00050958]
[1752091074643,0.71168966,111780.0,111770.0,0.00050958]
[1752091075032,0.71468966,111780.0,111770.0,0.00050958]
[1752091076448,0.88781169,111780.0,111770.0,0.00050958]
[1752091076678,0.89675751,111780.0,111770.0,0.00054958]
[1752091076814,0.88781185,111780.0,111770.0,0.03324958]
[1752091077001,0.9023527,111780.0,111770.0,0.03324958]
[1752091077402,0.9023527,111780.0,111770.0,0.03328958]
[1752091077605,0.72342934,111780.0,111770.0,0.03332958]
[1752091077854,0.90235222,111780.0,111770.0,0.06566958]
[1752091078016,0.90235254,111780.0,111770.0,0.06570958]
[1752091078215,0.90235254,111780.0,111770.0,0.06674958]
[1752091078419,0.90235254,111780.0,111770.0,0.00178958]
[1752091078654,0.90235254,111780.0,111770.0,0.00182958]
[1752091078884,0.90235254,111780.0,111770.0,0.00186958]
[1752091079041,0.90235254,111780.0,111770.0,0.00190958]
[1752091079254,0.92922254,111780.0,111770.0,0.00194958]
[1752091079458,0.92922254,111780.0,111770.0,0.00198958]
[1752091079698,0.73722254,111780.0,111770.0,0.00202958]
[1752091079848,0.54742254,111780.0,111770.0,0.00202958]
[1752091080051,0.73698254,111780.0,111770.0,0.00202958]
[1752091080713,0.33606693,111780.0,111770.0,0.00202958]
[1752091080887,0.75479394,111780.0,111770.0,0.03302958]
[1752091081093,0.51281778,111780.0,111770.0,0.00202958]
[1752091081449,0.433629,111780.0,111770.0,0.96573507]
[1752091081657,0.40676,111780.0,111770.0,0.47089656]
[1752091081863,0.51608801,111780.0,111770.0,0.40332958]
[1752091082080,0.50881592,111780.0,111770.0,0.06332958]
[1752091082300,0.49986994,111780.0,111770.0,0.06332958]
[1752091082515,0.47303312,111780.0,111770.0,0.06332958]
[1752091082719,0.47303312,111780.0,111770.0,0.96573507]
[1752091082720,0.36058847,111780.0,111770.0,0.96573507]
[1752091083302,0.36058847,111780.0,111770.0,1.15362082]
[1752091083568,0.36058847,111780.0,111770.0,0.96573507]
[1752091083787,0.36058847,111780.0,111770.0,0.47089656]
[1752091083992,0.36058847,111780.0,111770.0,0.96573507]
[1752091084201,0.4520254,111780.0,111770.0,0.06637958]
[1752091084407,0.46097082,111780.0,111770.0,0.06332958]
[1752091084624,0.6577855,111780.0,111770.0,0.00292958]
[1752091084827,0.4520254,111780.0,111770.0,0.00292958]
[1752091085051,0.2630654,111780.0,111770.0,0.06802958]
[1752091085260,0.28659073,111830.0,111810.0,0.0322]
[1752091085468,0.29261406,111820.0,111810.0,0.0322]
[1752091085672,0.28981915,111820.0,111810.0,0.0272]
[1752091085878,0.28087693,111820.0,111810.0,0.0272]
[1752091086052,0.28075693,111820.0,111810.0,0.0591]
[1752091086503,0.28075693,111820.0,111810.0,0.05923988]
[1752091086711,0.09143693,111820.0,111810.0,0.05923988]
[1752091086914,0.2835516,111820.0,111810.0,0.05923988]
[1752091087119,0.28063693,111820.0,111810.0,0.23811475]
[1752091087369,0.2148,111830.0,111810.0,1.08189692]
[1752091087581,0.19171467,111820.0,111810.0,0.64166231]
[1752091087785,0.30623693,111830.0,111820.0,0.39465992]
[1752091087786,0.2148,111830.0,111820.0,0.39465992]
[1752091087995,0.2148,111830.0,111820.0,1.13046985]
[1752091088197,0.2148,111830.0,111820.0,1.13941223]
[1752091088408,0.026852,111850.0,111840.0,0.0323]
[1752091088609,0.30692893,111850.0,111840.0,0.0323]
[1752091088812,0.30692893,111850.0,111840.0,0.0651]
[1752091089571,0.52150055,111850.0,111840.0,0.0651]
[1752091089789,0.50362019,111850.0,111840.0,0.0651]
[1752091089993,0.51256073,111850.0,111840.0,0.0651]
[1752091090194,0.52710158,111850.0,111840.0,0.0651]
[1752091090569,0.20564987,111840.0,111830.0,0.0645]
[1752091090716,0.10931841,111840.0,111830.0,0.17898036]
[1752091090932,0.30882159,111840.0,111830.0,0.17898036]
[1752091091123,0.36887793,111840.0,111830.0,0.09996338]
[1752091091306,0.35989699,111840.0,111830.0,0.09996338]
[1752091091503,0.20568626,111820.0,111810.0,0.08233988]
[1752091091728,0.49422605,111820.0,111810.0,0.50280326]
[1752091091929,0.47634137,111820.0,111810.0,0.10010326]
[1752091092240,0.56267295,111820.0,111810.0,0.00013988]
[1752091092459,0.37451295,111820.0,111810.0,0.00013988]
[1752091092665,0.56247295,111820.0,111810.0,0.00013988]
[1752091092869,0.56247295,111820.0,111810.0,0.00017988]
[1752091093172,0.37451295,111820.0,111810.0,0.00021988]
[1752091093309,0.56235295,111820.0,111810.0,0.00025988]
[1752091093516,0.56235295,111820.0,111810.0,0.00029988]
[1752091093711,0.56935295,111820.0,111810.0,0.00033988]
[1752091093924,0.5548121,111820.0,111810.0,0.00037988]
[1752091094126,0.5568121,111820.0,111810.0,0.00041988]
[1752091094329,0.5478121,111820.0,111810.0,0.00045988]
[1752091094612,1.05819146,111820.0,111810.0,0.00049988]
[1752091094841,0.1967746,111780.0,111770.0,0.06646]
[1752091095086,0.48459703,111780.0,111770.0,0.06692958]
[1752091095252,0.49354317,111780.0,111770.0,0.06692958]
[1752091095545,0.47565105,111780.0,111770.0,0.08144656]
[1752091095692,0.49354301,111780.0,111770.0,0.08144656]
[1752091095892,0.49354301,111780.0,111770.0,0.06692958]
[1752091096107,0.49354301,111780.0,111770.0,0.08144656]
[1752091096311,0.48439695,111780.0,111770.0,0.08144656]
[1752091096520,0.00894478,111790.0,111780.0,0.0628]
[1752091096735,0.29908214,111790.0,111780.0,0.1128]
[1752091096940,0.48413878,111790.0,111780.0,0.1128]
[1752091097142,0.27839693,111790.0,111780.0,0.12731698]
[1752091097349,0.09143693,111790.0,111780.0,0.62215549]
[1752091097566,0.01174003,111790.0,111780.0,0.12731698]
[1752091097770,0.40424172,111790.0,111780.0,0.07831698]
[1752091097991,0.47499392,111790.0,111780.0,0.001]
[1752091098142,0.47499392,111790.0,111780.0,0.002]
[1752091098694,0.47499392,111790.0,111780.0,0.00204]
[1752091098901,0.98437328,111790.0,111780.0,0.00204]
[1752091099102,1.07581021,111790.0,111780.0,0.00208]
[1752091099256,1.45129323,111790.0,111780.0,0.00212]
[1752091099461,1.3598563,111790.0,111780.0,0.00212]
[1752091099665,0.86501779,111790.0,111780.0,0.00216]
[1752091099852,0.67825779,111790.0,111780.0,0.0022]
[1752091100053,0.47483392,111790.0,111780.0,0.00224]
[1752091100253,0.28823392,111790.0,111780.0,0.00028]
[1752091100452,0.29596681,111790.0,111780.0,0.01483698]
[1752091100651,0.48381918,111790.0,111780.0,0.07917698]
[1752091100911,0.47487424,111790.0,111780.0,0.00044]
[1752091101114,0.47487424,111790.0,111780.0,0.06484]
[1752091101115,0.10932705,111790.0,111780.0,0.06484]
[1752091101334,0.30770708,111790.0,111780.0,0.06488]
[1752091101539,0.30467159,111790.0,111780.0,0.06496]
[1752091101740,0.30467159,111790.0,111780.0,0.065]
[1752091101741,0.47487424,111790.0,111780.0,0.065]
[1752091101882,0.28823424,111790.0,111780.0,0.065]
[1752091102083,0.01788788,111800.0,111790.0,0.07871698]
[1752091102351,0.4864357,111800.0,111790.0,0.0642]
[1752091102541,0.47469648,111800.0,111790.0,0.0065621]
[1752091102744,0.47461648,111800.0,111790.0,0.0065621]
[1752091103669,0.09143693,111800.0,111790.0,0.1218621]
[1752091103887,0.06543111,111810.0,111790.0,0.07424908]
[1752091104098,0.1950639,111800.0,111790.0,0.0597321]
[1752091104305,0.18612,111800.0,111790.0,0.13954908]
[1752091104508,0.11829993,111810.0,111800.0,0.46981698]
[1752091104710,0.01173689,111820.0,111810.0,0.0653]
[1752091104835,0.00279467,111820.0,111810.0,0.24734487]
[1752091105038,0.21476,111830.0,111820.0,0.40451698]
[1752091105268,0.40092,111830.0,111820.0,0.47308698]
[1752091105469,0.40092,111830.0,111820.0,0.6620729]
[1752091105669,0.21476,111830.0,111820.0,0.67995838]
[1752091105888,0.21476,111830.0,111820.0,0.47441097]
[1752091105889,0.40096,111830.0,111820.0,0.47441097]
[1752091106302,0.40990158,111830.0,111820.0,0.45672399]
[1752091106478,0.41884308,111830.0,111820.0,0.13124097]
[1752091106697,0.52816389,111830.0,111820.0,0.08128097]
[1752091106863,0.70700669,111830.0,111820.0,0.11680399]
[1752091107064,0.68912361,111830.0,111820.0,0.00140399]
[1752091107276,0.68912361,111830.0,111820.0,0.00144399]
[1752091107277,0.76091434,111830.0,111820.0,0.00144399]
[1752091107617,0.76091434,111830.0,111820.0,0.00152399]
[1752091107827,0.50292361,111830.0,111820.0,0.00156399]
[1752091107962,0.68876361,111830.0,111820.0,0.00260399]
[1752091108171,0.31513835,111830.0,111820.0,0.11694399]
[1752091108406,0.30619693,111830.0,111820.0,0.11698399]
[1752091108758,0.30619693,111830.0,111820.0,0.12115399]
[1752091108759,0.49183693,111830.0,111820.0,0.12115399]
[1752091108892,0.49183693,111830.0,111820.0,0.824084]
[1752091108893,0.21476,111830.0,111820.0,0.824084]
[1752091109099,0.40024,111830.0,111820.0,0.88749941]
[1752091109299,0.21476,111830.0,111820.0,1.46339597]
[1752091109517,0.40012,111830.0,111820.0,0.96855754]
[1752091109708,0.40012,111830.0,111820.0,1.46339597]
[1752091110122,0.026851,111860.0,111830.0,0.18778221]
[1752091110331,0.11828793,111860.0,111850.0,0.12998698]
[1752091110477,0.3064816,111860.0,111850.0,0.12998698]
[1752091110701,0.30360793,111860.0,111850.0,0.12998698]
[1752091111045,0.50028177,111860.0,111850.0,0.12681698]
[1752091111248,0.47343077,111860.0,111850.0,0.0623]
[1752091111455,0.17882689,111840.0,111830.0,0.1146]
[1752091111668,0.67028161,111840.0,111830.0,0.55456338]
[1752091111868,0.65854634,111840.0,111830.0,0.21456338]
[1752091112230,0.65854634,111840.0,111830.0,0.09996338]
[1752091112435,0.18778486,111830.0,111820.0,0.45538399]
[1752091112658,0.27922179,111830.0,111820.0,0.45538399]
[1752091112822,0.27922179,111830.0,111820.0,0.11538399]
[1752091113023,0.27922179,111830.0,111820.0,0.00258399]
[1752091113505,0.35101252,111830.0,111820.0,0.00258399]
[1752091113706,0.19339973,111820.0,111800.0,0.12822833]
[1752091113906,0.2023761,111800.0,111790.0,0.13360633]
[1752091114026,0.78865154,111800.0,111790.0,0.05712173]
[1752091114432,0.27927218,111800.0,111790.0,0.05712173]
[1752091115290,0.27927218,111800.0,111790.0,0.11842173]
[1752091115291,0.10932569,111800.0,111790.0,0.11842173]
[1752091115505,0.29692085,111800.0,111790.0,0.11842173]
[1752091115657,0.1937439,111800.0,111790.0,0.60306289]
[1752091115858,0.1848,111800.0,111790.0,0.47483456]
[1752091116069,0.00279516,111800.0,111790.0,0.5774627]
[1752091116273,0.00379516,111800.0,111790.0,1.26115342]
[1752091116472,0.00379516,111800.0,111790.0,1.27904386]
[1752091116473,0.18564,111800.0,111790.0,1.27904386]
[1752091116657,0.21472,111810.0,111800.0,0.06451698]
[1752091116866,0.39924,111810.0,111800.0,0.12918698]
[1752091117323,0.4171266,111810.0,111800.0,0.12918698]
[1752091117740,0.6874388,111810.0,111800.0,0.12824579]
[1752091117947,0.30615693,111810.0,111800.0,0.12894132]
[1752091118154,0.71497972,111810.0,111800.0,0.19304132]
[1752091118501,0.70603638,111810.0,111800.0,0.19304132]
[1752091118787,0.6970928,111810.0,111800.0,0.24436009]
[1752091119636,0.6970928,111810.0,111800.0,0.19304132]
[1752091119841,0.6970928,111810.0,111800.0,0.1161]
[1752091120212,0.5128928,111810.0,111800.0,0.1161]
[1752091120417,0.6966528,111810.0,111800.0,0.21872814]
[1752091120766,0.6964928,111810.0,111800.0,0.12901607]
[1752091120966,0.6964928,111810.0,111800.0,0.12901232]
[1752091121391,0.6964928,111810.0,111800.0,0.21802814]
[1752091121594,0.4860318,111810.0,111800.0,0.1154]
[1752091121790,0.6693918,111810.0,111800.0,0.1154]
[1752091121991,0.67833554,111810.0,111800.0,0.21802814]
[1752091122456,0.6693918,111810.0,111800.0,0.21802814]
[1752091122645,0.6693918,111810.0,111800.0,0.1154]
[1752091122817,0.30715693,111810.0,111800.0,0.11849]
[1752091123020,0.51726759,111810.0,111800.0,0.11849]
[1752091123223,0.50832337,111810.0,111800.0,0.19551858]
[1752091123429,0.70508556,111810.0,111800.0,0.55003556]
[1752091123646,0.70508556,111810.0,111800.0,0.60139798]
[1752091123647,0.68719912,111810.0,111800.0,0.60139798]
[1752091124037,0.51726687,111810.0,111800.0,0.60139798]
[1752091124238,0.50832337,111810.0,111800.0,0.60139798]
[1752091124441,0.22466318,111810.0,111800.0,1.04487407]
[1752091124624,0.21572,111810.0,111800.0,1.14483745]
[1752091125045,0.37864,111810.0,111800.0,0.64999894]
[1752091125254,0.37864,111810.0,111800.0,0.57297036]
[1752091125447,0.37864,111810.0,111800.0,0.57097036]
[1752091125677,0.37964,111810.0,111800.0,0.57097036]
[1752091126000,0.37964,111810.0,111800.0,0.6735985]
[1752091126322,0.37864,111810.0,111800.0,0.6735985]
[1752091126609,0.38164,111810.0,111800.0,1.35627234]
[1752091126765,0.38108,111810.0,111800.0,2.08310492]
[1752091126962,0.19872,111810.0,111800.0,1.76580887]
[1752091127163,0.381,111810.0,111800.0,1.96258874]
[1752091127372,0.381,111810.0,111800.0,1.97153312]
[1752091127573,0.381,111810.0,111800.0,2.06527529]
[1752091127781,0.19872,111810.0,111800.0,2.09210787]
[1752091127974,0.38072,111810.0,111800.0,1.98942132]
[1752091128200,0.38072,111810.0,111800.0,2.1172919]
[1752091128608,0.19872,111810.0,111800.0,2.1172919]
[1752091128782,0.38048,111810.0,111800.0,2.3359149]
[1752091128994,0.003,111810.0,111800.0,2.44189268]
[1752091129293,0.18269293,111810.0,111800.0,2.44189268]
[1752091129751,0.01788132,111840.0,111830.0,0.1154]
[1752091130079,0.31159422,111840.0,111830.0,0.24379378]
[1752091130282,0.31774123,111840.0,111830.0,0.24379378]
[1752091130490,0.27303693,111840.0,111830.0,0.19243627]
[1752091130704,0.27303693,111840.0,111830.0,0.19552627]
[1752091130705,0.00894062,111840.0,111830.0,0.19552627]
[1752091130906,0.23259852,111860.0,111850.0,0.05]
[1752091131081,0.50283077,111860.0,111850.0,0.08852339]
[1752091131288,0.68431077,111860.0,111850.0,0.05]
[1752091131498,0.68431077,111860.0,111850.0,0.08852339]
[1752091132492,0.68431077,111860.0,111850.0,0.09152339]
[1752091133346,0.68431077,111860.0,111850.0,0.09552339]
[1752091133813,0.50283077,111860.0,111850.0,0.09552339]
[1752091134013,0.68423077,111860.0,111850.0,0.14688791]
[1752091134218,0.68423077,111860.0,111850.0,0.09552339]
[1752091134399,0.68423077,111860.0,111850.0,0.14688791]
[1752091134633,0.68423077,111860.0,111850.0,0.18008791]
[1752091134834,0.69317043,111860.0,111850.0,0.21018791]
[1752091135035,0.51437487,111860.0,111850.0,0.21018791]
[1752091135207,0.52331453,111860.0,111850.0,0.21018791]
[1752091135410,0.69317035,111860.0,111850.0,0.21018791]
[1752091135573,0.68423101,111860.0,111850.0,0.21018791]
[1752091136663,0.67529151,111860.0,111850.0,0.21018791]
[1752091136865,0.66631185,111860.0,111850.0,0.14688791]
[1752091137065,0.48495185,111860.0,111850.0,0.09552339]
[1752091137307,0.66631185,111860.0,111850.0,0.09552339]
[1752091137509,0.50539601,111860.0,111850.0,0.14688791]
[1752091137666,0.68419125,111860.0,111850.0,0.16072339]
[1752091137867,0.68419125,111860.0,111850.0,0.09552339]
[1752091138070,1.17902976,111860.0,111850.0,0.04552339]
[1752091138522,0.20229213,111850.0,111840.0,0.08988791]
[1752091138849,0.27918821,111850.0,111840.0,0.08988791]
[1752091138979,0.46054821,111850.0,111840.0,0.03852339]
[1752091139182,0.95538672,111850.0,111840.0,0.03852339]
[1752091139394,0.95538672,111850.0,111840.0,0.08988791]
[1752091139594,0.96992757,111850.0,111840.0,0.03852339]
[1752091139906,0.18776807,111840.0,111830.0,0.09002782]
[1752091140183,0.279205,111840.0,111830.0,0.09009868]
[1752091140362,0.460525,111840.0,111830.0,0.1285407]
[1752091140564,0.460525,111840.0,111830.0,0.12717618]
[1752091140766,0.279205,111840.0,111830.0,0.17862644]
[1752091140967,0.460525,111840.0,111830.0,0.17862644]
[1752091141169,0.77556263,111840.0,111830.0,0.18062644]
[1752091141913,0.77556263,111840.0,111830.0,0.10359017]
[1752091142093,0.460525,111840.0,111830.0,0.10559017]
[1752091142323,0.279205,111840.0,111830.0,0.10559017]
[1752091142541,0.460525,111840.0,111830.0,0.13117618]
[1752091143171,0.460525,111840.0,111830.0,0.08121618]
[1752091143348,0.279205,111840.0,111830.0,0.13267458]
[1752091143548,0.460525,111840.0,111830.0,0.18267458]
[1752091143715,0.27920492,111840.0,111830.0,0.19451618]
[1752091143919,0.4694661,111840.0,111830.0,0.19451618]
[1752091144173,0.09143693,111840.0,111830.0,0.24597118]
[1752091144377,0.47226011,111840.0,111830.0,0.08121618]
[1752091144553,0.60318357,111840.0,111830.0,0.13269118]
[1752091144754,0.78450357,111840.0,111830.0,0.09427005]
[1752091144956,1.13904442,111840.0,111830.0,0.09427005]
[1752091145165,0.28814594,111840.0,111830.0,0.09427005]
[1752091145402,0.28814594,111840.0,111830.0,0.05565491]
[1752091145619,0.46946594,111840.0,111830.0,0.10565491]
[1752091145772,0.28814594,111840.0,111830.0,0.13269118]
[1752091145976,0.78450357,111840.0,111830.0,0.13269118]
[1752091146320,1.16077773,111840.0,111830.0,0.04280677]
[1752091146523,0.20232571,111830.0,111820.0,0.09011399]
[1752091146715,0.51736334,111830.0,111820.0,0.09025393]
[1752091147017,0.51736334,111830.0,111820.0,0.03877893]
[1752091147384,0.51738014,111820.0,111810.0,0.051475]
[1752091147583,0.2023593,111810.0,111800.0,0.07703627]
[1752091147791,0.2023593,111810.0,111790.0,0.005378]
[1752091147792,0.18783525,111800.0,111790.0,0.08241427]
[1752091147996,0.18783525,111800.0,111790.0,0.00584758]
[1752091147997,0.60885066,111800.0,111790.0,0.00584758]
[1752091148201,1.26388829,111800.0,111790.0,0.00584758]
[1752091148401,0.2023929,111790.0,111780.0,0.00064]
[1752091148623,0.50295408,111790.0,111780.0,0.12767627]
[1752091148935,0.68439408,111790.0,111780.0,0.18573073]
[1752091149139,0.21472,111790.0,111780.0,0.85848534]
[1752091149368,0.39612,111790.0,111780.0,0.96120037]
[1752091149567,0.39612,111790.0,111780.0,0.96141772]
[1752091149730,0.42295482,111790.0,111780.0,0.57458936]
[1752091149933,0.60186225,111790.0,111780.0,0.57238936]
[1752091150112,0.41501012,111790.0,111780.0,0.57238936]
[1752091150317,0.41501012,111790.0,111780.0,0.50908936]
[1752091150318,0.68535392,111790.0,111780.0,0.50908936]
[1752091150502,0.68535392,111790.0,111780.0,0.40615698]
[1752091150703,0.68535392,111790.0,111780.0,0.43935698]
[1752091151087,0.51539239,111790.0,111780.0,0.57558936]
[1752091151294,0.33399151,111790.0,111780.0,0.57558936]
[1752091151506,0.70320372,111790.0,111780.0,0.57558936]
[1752091151681,0.6942591,111790.0,111780.0,0.57510936]
[1752091151879,0.6942591,111790.0,111780.0,0.56558936]
[1752091152245,0.50640689,111790.0,111780.0,0.56558936]
[1752091152445,0.30715693,111790.0,111780.0,0.56558936]
[1752091152672,0.39708,111790.0,111780.0,0.78664075]
[1752091152918,0.21572,111790.0,111780.0,1.12027167]
[1752091153247,0.21572,111790.0,111780.0,1.22027505]
[1752091153447,0.39708,111790.0,111780.0,1.22027505]
[1752091153633,0.21572,111790.0,111780.0,1.22027505]
[1752091153837,0.39708,111790.0,111780.0,1.22027505]
[1752091154035,0.39608,111790.0,111780.0,1.37027505]
[1752091154238,0.39608,111790.0,111780.0,1.36927505]
[1752091154457,0.00047024,111800.0,111790.0,1.08675891]
[1752091154658,0.18183024,111800.0,111790.0,1.60463246]
[1752091154868,0.00047024,111800.0,111790.0,2.37397146]
[1752091155055,0.21476,111840.0,111830.0,0.65125986]
[1752091155212,0.39612,111840.0,111830.0,0.47255702]
[1752091155449,0.41400148,111840.0,111830.0,0.47255702]
[1752091155780,0.39612,111840.0,111830.0,0.78759465]
[1752091155937,0.30619693,111840.0,111830.0,0.46935702]
[1752091156141,0.50539865,111840.0,111830.0,0.46935702]
[1752091156523,0.4050207,111840.0,111830.0,0.46935702]
[1752091156728,0.41396148,111840.0,111830.0,0.46935702]
[1752091156908,0.24158258,111840.0,111830.0,0.46935702]
[1752091157146,0.43184392,111840.0,111830.0,0.47255702]
[1752091157357,0.41396148,111840.0,111830.0,0.46935702]
[1752091157562,0.4139614,111840.0,111830.0,0.46935702]
[1752091157768,0.4139614,111840.0,111830.0,0.45484004]
[1752091157973,0.4139614,111840.0,111830.0,0.46935702]
[1752091158215,0.52328093,111840.0,111830.0,0.46935702]
[1752091158390,0.52328085,111840.0,111830.0,0.46935702]
[1752091158590,0.48751693,111840.0,111830.0,0.46935702]
[1752091158793,0.49645763,111840.0,111830.0,0.46935702]
[1752091159006,0.48751693,111840.0,111830.0,0.46935702]
[1752091159201,0.22370062,111840.0,111830.0,0.78759465]
[1752091159431,0.60172947,111840.0,111830.0,0.46885702]
[1752091159629,0.52328085,111840.0,111830.0,0.46885702]
[1752091159765,0.50590626,111840.0,111830.0,0.01465702]
[1752091159967,0.68418626,111840.0,111830.0,0.00014004]
[1752091160369,0.76523036,111840.0,111830.0,0.05014004]
[1752091160588,0.67624516,111840.0,111830.0,0.05014004]
[1752091160778,0.99128279,111840.0,111830.0,0.00014004]
[1752091160982,0.67624516,111840.0,111830.0,0.00014004]
[1752091161184,1.72456127,111840.0,111830.0,0.00014004]
[1752091161384,1.72456127,111840.0,111830.0,1e-08]
[1752091162262,1.34482364,111840.0,111830.0,1e-08]
[1752091162467,1.35282364,111840.0,111830.0,1e-08]
[1752091162725,1.34482364,111840.0,111830.0,1e-08]
[1752091163078,1.35282364,111840.0,111830.0,1e-08]
[1752091163460,1.72286127,111840.0,111830.0,0.00200001]
[1752091163650,1.41382364,111840.0,111830.0,0.00200001]
[1752091163856,1.8202982,111840.0,111830.0,0.00200001]
[1752091163989,1.09878601,111840.0,111830.0,0.00200001]
[1752091164199,1.35082364,111840.0,111830.0,0.00200001]
[1752091164411,1.35082364,111840.0,111830.0,1e-08]
[1752091164826,0.19676179,111810.0,111800.0,0.06451698]
[1752091165046,0.76662943,111810.0,111800.0,0.00014022]
[1752091165461,0.4515918,111810.0,111800.0,0.00014022]
[1752091165661,0.18783525,111800.0,111790.0,0.05]
[1752091165878,0.19677955,111800.0,111790.0,0.05]
[1752091166524,0.19677955,111800.0,111790.0,0.12731698]
[1752091166913,0.46949648,111800.0,111790.0,0.12931698]
[1752091167261,0.28821648,111800.0,111790.0,0.12931698]
[1752091167465,0.09143693,111800.0,111790.0,0.12931698]
[1752091167667,0.49017992,111800.0,111790.0,0.12931698]
[1752091167884,0.28166107,111800.0,111790.0,0.12931698]
[1752091168089,0.48738468,111800.0,111790.0,0.12931698]
[1752091168292,0.47844078,111800.0,111790.0,0.12931698]
[1752091168669,0.46949664,111800.0,111790.0,0.12931698]
[1752091169073,0.46949664,111800.0,111790.0,0.12731698]
[1752091169268,0.46949648,111800.0,111790.0,0.12731698]
[1752091169516,0.29060561,111800.0,111790.0,0.12731698]
[1752091169714,0.29060513,111800.0,111790.0,0.44235461]
[1752091169889,0.28166091,111800.0,111790.0,0.44555461]
[1752091170092,0.47844046,111800.0,111790.0,0.44855461]
[1752091170327,0.28821648,111800.0,111790.0,0.44855461]
[1752091170497,0.46949648,111800.0,111790.0,0.44555461]
[1752091170692,0.28821648,111800.0,111790.0,0.13051698]
[1752091170915,0.46949648,111800.0,111790.0,0.13251698]
[1752091171342,0.27927226,111800.0,111790.0,0.13251698]
[1752091171483,0.46055226,111800.0,111790.0,0.07931698]
[1752091171713,0.46055226,111800.0,111790.0,0.12931698]
[1752091171931,0.46055226,111800.0,111790.0,0.002]
[1752091171932,0.77558989,111800.0,111790.0,0.002]
[1752091172538,0.46055226,111800.0,111790.0,0.002]
[1752091172770,0.50288968,111790.0,111780.0,4e-05]
[1752091172998,0.59432661,111790.0,111780.0,4e-05]
[1752091173568,0.27928898,111790.0,111780.0,4e-05]
[1752091173821,0.59432661,111790.0,111780.0,4e-05]
[1752091174000,0.77560661,111790.0,111780.0,4e-05]
[1752091174412,0.27928898,111790.0,111780.0,4e-05]
[1752091174646,0.46056898,111790.0,111780.0,4e-05]
[1752091174827,0.46256898,111790.0,111780.0,4e-05]
[1752091175062,0.77760661,111790.0,111780.0,4e-05]
[1752091175464,0.80447761,111790.0,111780.0,4e-05]
[1752091175666,0.62319761,111790.0,111780.0,0.00364]
[1752091175879,0.80447761,111790.0,111780.0,0.00364]